Cogmind - Beta 15 @@@ ROGUE MODE // 2025.09.21 @ 17:22:18 Player: Kaeinara Result: Destroyed by S-10 Pest with Light Assault Rifle Performance ------------- Evolutions (0) 0 Regions Visited (2) 400 Robots Destroyed (6) 30 Value Destroyed (240) 240 Prototype IDs (0) 0 Alien Tech Used (0) 0 Bonus (0) 0 TOTAL SCORE: 670 Bonus ------- None Cogmind --------- Core Integrity 0/250 Matter 277/300 Energy 241/250 System Corruption 0% Temperature Cool (24) Movement Treading (160) Location -10/Subcaves Parts ------- > --- POWER (1) -------- Ion Engine > --- PROPULSION (2) --- Light Treads Light Treads > --- UTILITY (2) ------ Medium Storage Unit Makeshift Light Armor Plating > --- WEAPON (2) ------- Subdweller Laser Light Assault Rifle > --- INVENTORY (10) --- Subdweller Power Source Compact Wheel Subdweller Optics Seismic Detector Light Armor Plating Medium Laser Subdweller Machine Gun Battle Cannon Datajack Scrap Shield Fragment (47) Peak State ------------ > --- POWER ------------ Ion Engine > --- PROPULSION ------- Light Treads Light Treads > --- UTILITY ---------- Medium Storage Unit Makeshift Light Armor Plating > --- WEAPON ----------- Subdweller Laser Light Assault Rifle > --- INVENTORY -------- Subdweller Power Source Compact Wheel Subdweller Optics Seismic Detector Light Armor Plating Medium Laser Subdweller Machine Gun Datajack Scrap Shield Fragment [Rating: 12] Favorites ----------- Power Ion Engine Engine Ion Engine Propulsion Light Treads Treads Light Treads Leg Aluminum Leg Utility Small Storage Unit Device Subdweller Optics Storage Small Storage Unit Protection Makeshift Light Armor Plating Weapon Subdweller Laser Energy Gun Subdweller Laser Ballistic Gun Light Assault Rifle Special Melee Weapon Datajack Build | -11 -10 -10 ------- Run | Yrd Mat Sub Slots Evolved . | . . . Power . | . . . Propulsion . | . . . Utility . | . . . Weapon . | . . . Parts Attached 17 | 6 1 10 Power 2 | 1 . 1 Engine 2 | 1 . 1 Core . | . . . Reactor . | . . . Propulsion 4 | 2 . 2 Treads 2 | . . 2 Leg 2 | 2 . . Wheel . | . . . Hover . | . . . Flight . | . . . Utility 5 | 1 1 3 Device 1 | . . 1 Storage 2 | 1 . 1 Processor . | . . . Hackware . | . . . Protection 2 | . 1 1 Artifact . | . . . Weapon 6 | 2 . 4 Energy Gun 4 | 2 . 2 Energy Cannon . | . . . Ballistic Gun 1 | . . 1 Ballistic Cannon . | . . . Launcher . | . . . Special Weapon . | . . . Impact Weapon . | . . . Slashing Weapon . | . . . Piercing Weapon . | . . . Special Melee Weapon 1 | . . 1 Unidentified Prototypes . | . . . Parts Lost 6 | . . 6 Power 1 | . . 1 Propulsion 2 | . . 2 Utility 1 | . . 1 Weapon 2 | . . 2 Highest Loss Streak 4 | . . 4 To Critical Strikes . | . . . Average Backups 6 | 3 6 6 Power . | . 1 1 Propulsion 1 | 1 3 1 Utility 1 | . . 2 Weapon 1 | . 1 1 Tool/Special . | . . . Unused Backups 7 | . 1 6 Power 1 | . . 1 Propulsion 2 | . 1 1 Utility 2 | . . 2 Weapon 2 | . . 2 Tool/Special . | . . . Average Slot Usage (%) 91 | . 92 90 Engine 13 | . 14 13 Treads 18 | . . 22 Leg 8 | . 28 5 Device 2 | . . 2 Storage 14 | . 14 14 Protection 5 | . 6 4 Energy Gun 18 | . 28 16 Ballistic Gun 6 | . . 7 Special Melee Weapon 2 | . . 3 Peak Build Rating 12 | 6 7 12 Average Rating 8 | 4 6 8 On Entrance 4 | . 6 7 Naked Turns . | . . . Heaviest Build 24 | 14 17 24 Greatest Support 40 | 20 20 40 Greatest Overweight (x) 4 | 4 . . Average Overweight (x) . | . . . Largest Inventory Capacity 10 | 8 8 10 Average Capacity 8 | 7 8 9 Most Carried 10 | 6 8 10 Average Carried 7 | 3 6 7 Final Capacity 10 | 8 8 10 Final Carried 10 | 6 8 10 Class Distribution -------------------- 100% | Mutant Dominant Class ---------------- Mutant | -10/Materials Mutant | -10/Subcaves Resources | -11 -10 -10 ----------- Run | Yrd Mat Sub Matter Collected 348 | 225 . 123 Remotely . | . . . Salvage Created 299 | . . 299 Parts 22 | . . 22 Haulers Intercepted . | . . . Recyclers Shooed . | . . . Parts Field Recycled . | . . . Retrieved Matter . | . . . Parts Self-Destructed . | . . . Prevented . | . . . Kills | -11 -10 -10 ------- Run | Yrd Mat Sub Combat Hostiles Destroyed 6 | . . 6 Melee 1 | . . 1 Guns 5 | . . 5 Classes Destroyed 1 | . . 1 Subdweller 6 | . . 6 Best Kill Streak 2 | . . 2 Combat Bots Only 2 | . . 2 Max Kills in Single Turn 1 | . . 1 Gunslinging . | . . . Exploded . | . . . Melee 1 | . . 1 Uniques/NPCs Destroyed . | . . . Combat | -11 -10 -10 -------- Run | Yrd Mat Sub Hostile Shots Fired 58 | . . 58 Missed 11 | . . 11 Hits 47 | . . 47 Projectile 47 | . . 47 AOE 2 | . . 2 Critical Strikes 2 | . . 2 Damage Taken 989 | . . 989 Core 255 | . . 255 Absorbed by Shields . | . . . Core Remaining (%) 100 | 100 . . Volleys Fired 33 | . 1 32 Largest 2 | . 2 2 Hottest 90 | . 90 90 Shots Fired 53 | . 2 51 Gun 53 | . 2 51 Cannon . | . . . Launcher . | . . . Special . | . . . Kinetic 9 | . . 9 Thermal 33 | . 1 32 Explosive . | . . . Electromagnetic 11 | . 1 10 Robot Hit Streak 19 | . 1 19 Robot Miss Streak 1 | . 1 1 Penetration Max . | . . . Secondary Targets . | . . . Shots Hit Robots 43 | . 1 42 Core Hits 20 | . . 20 Critical Kills . | . . . Critical Parts Destroyed . | . . . Critical Strikes 2 | . . 2 Burn 2 | . . 2 Melee Attacks 1 | . . 1 Impact . | . . . Slashing . | . . . Piercing . | . . . Sneak Attacks . | . . . Combat Hostiles . | . . . Follow-up Attacks . | . . . Damage Inflicted 562 | . 20 542 Guns 548 | . 20 528 Cannons . | . . . Explosions . | . . . Melee . | . . . Ramming 14 | . . 14 Kinetic 32 | . . 32 Thermal 408 | . . 408 Explosive . | . . . Electromagnetic 108 | . 20 88 Impact . | . . . Slashing . | . . . Piercing . | . . . Highest Corruption . | . . . Average Corruption . | . . . Corruption Purged . | . . . Corruption Blocked . | . . . Overload Shots . | . . . Overflow Damage . | . . . Projectiles . | . . . Explosions . | . . . Melee . | . . . Knockbacks . | . . . Impact . | . . . Kinetic . | . . . Secondary . | . . . Self-Inflicted Damage 4 | . . 4 Shots . | . . . Rammed 18 | . . 18 Targets Rammed 19 | . . 19 Kicked 1 | . . 1 Crushed . | . . . Highest Temperature 30 | . 30 24 Average Temperature 14 | . 18 10 Received Heat Transfer 141 | . . 141 Siege Activations . | . . . Martial Activations . | . . . Shielding Activations . | . . . Robots Disrupted . | . . . Combat Hostiles . | . . . Robots Corrupted . | . . . Combat Hostiles . | . . . Parts Fried . | . . . Impact Corruptions . | . . . Robots Melted . | . . . Combat Hostiles . | . . . Parts Melted 2 | . . 2 Heat Transferred 1137 | . . 1137 Parts Sabotaged . | . . . Parts Stolen . | . . . Parts Stripped . | . . . Power Chain Reactions . | . . . Alert | -11 -10 -10 ------- Run | Yrd Mat Sub Maximum Alert Level . | . . . Low Security (%) 100 | 100 100 . Level 1 . | . . . Level 2 . | . . . Level 3 . | . . . Level 4 . | . . . Level 5 . | . . . High Security . | . . . Max Security . | . . . Peak Influence . | . . . Initial . | . . . Average . | . . . Influence Increases . | . . . Influence Decreases . | . . . Squads Dispatched . | . . . Investigation . | . . . Extermination . | . . . Reinforcement . | . . . Assault . | . . . Garrison . | . . . Intercept . | . . . Searches Triggered . | . . . Construction Impeded . | . . . Haulers Reinforced . | . . . Active Scanning Responses . | . . . Cargo Convoy Interrupts . | . . . Stealth | -11 -10 -10 --------- Run | Yrd Mat Sub Distress Signals . | . . . Communications Jammed . | . . . Distress Signals . | . . . Times Spotted 11 | . 1 10 Peak Tracking Total 3 | . 1 3 Tactical Retreats . | . . . Traps | -11 -10 -10 ------- Run | Yrd Mat Sub Traps Triggered . | . . . Indirectly . | . . . Trap Hack Attempts . | . . . Triggered . | . . . Disarmed . | . . . Reprogrammed . | . . . Reused . | . . . Traps Extracted . | . . . Installed . | . . . Triggered . | . . . Machines | -11 -10 -10 ---------- Run | Yrd Mat Sub Machines Disabled . | . . . Max in Single Turn . | . . . Machines Repaired . | . . . Machines Dismantled . | . . . Machines Sabotaged . | . . . Overloaded Fab Kills . | . . . Hacking | -11 -10 -10 --------- Run | Yrd Mat Sub Machines Accessed 1 | . . 1 Terminals . | . . . Fabricators . | . . . Repair Stations . | . . . Recycling Units . | . . . Scanalyzers . | . . . Garrison Access . | . . . Total Hacks 3 | . . 3 Successful 3 | . . 3 Failed . | . . . Catastrophic . | . . . Database Lockouts . | . . . Manual . | . . . Terminals . | . . . Fabricators . | . . . Repair Stations . | . . . Recycling Units . | . . . Scanalyzers . | . . . Garrison Access . | . . . Terminal Hacks 3 | . . 3 Record 3 | . . 3 Fabricator Hacks . | . . . Repair Station Hacks . | . . . Recycling Unit Hacks . | . . . Scanalyzer . | . . . Garrison Access Hacks . | . . . Unauthorized Hacks . | . . . Terminals . | . . . Fabricators . | . . . Repair Stations . | . . . Recycling Units . | . . . Scanalyzers . | . . . Garrison Access . | . . . Data Cores Recovered . | . . . Used . | . . . Hacking Detections . | . . . Full Trace Events . | . . . Feedback Events . | . . . Feedback Blocked . | . . . Robot Schematics Acquired . | . . . Robots Built . | . . . Authchips . | . . . Time . | . . . Total Robot Build Rating . | . . . Part Schematics Acquired . | . . . Parts Built . | . . . Authchips . | . . . Time . | . . . Total Part Build Rating . | . . . Parts Repaired . | . . . Time . | . . . Parts Recycled . | . . . Recycled Matter . | . . . Retrieved Matter . | . . . Retrieved Components . | . . . Parts Scanalyzed . | . . . Part Schematics Acquired . | . . . Parts Damaged . | . . . Bothacking | -11 -10 -10 ------------ Run | Yrd Mat Sub Used RIF Installer . | . . . Robots Hacked . | . . . Non-combat . | . . . Combat . | . . . Robot Hacks Applied . | . . . Relay Couplers Released . | . . . Fabnet Peak Effective % . | . . . Robots Rewired . | . . . Allies Hacked . | . . . Hacks Repelled . | . . . Allies | -11 -10 -10 -------- Run | Yrd Mat Sub Total Allies . | . . . Largest Group . | . . . Highest-Rated Group . | . . . Highest-Rated Ally . | . . . Total Orders . | . . . Ally Attacks . | . . . Total Damage . | . . . Kills . | . . . Allies Corrupted . | . . . Allies Melted . | . . . Intel | -11 -10 -10 ------- Run | Yrd Mat Sub Active Infowar (turns) 224 | . . 224 Optics 224 | . . 224 Robot Analysis Total . | . . . Derelict Logs Recovered . | . . . Drone Launches . | . . . Drone Recoveries . | . . . Exploration | -11 -10 -10 ------------- Run | Yrd Mat Sub Turns Passed 1460 | 68 224 1168 Spaces Moved 888 | 39 180 669 Core 14 | 14 . . Treads 539 | . . 539 Legs 335 | 25 180 130 Wheels . | . . . Hover . | . . . Flight . | . . . Fastest Speed 50 | 50 120 120 Average Speed 144 | 130 120 152 Slowest Speed 250 | 250 120 160 Overloaded Moves . | . . . Propulsion Burnouts . | . . . Robots Hopped . | . . . Potential Cave-ins . | . . . Cave-ins Triggered . | . . . Exploration Rate (%) 26 | 4 28 48 Regions Visited 2 Branch Regions 1 Pre-discovered Areas . | . . . Known Exits Taken . | . . . Unknown Exits Taken 2 | 1 1 . Scrap Searched . | . . . Spaces Dug . | . . . Terrain Destroyed . | . . . Melee . | . . . Projectile . | . . . AOE . | . . . Terrain Rammed . | . . . Walls Destroyed . | . . . Machines Disabled . | . . . Actions | -11 -10 -10 --------- Run | Yrd Mat Sub Total 1002 | 56 186 760 Wait 19 | . . 19 Move 886 | 38 179 669 Hop . | . . . Pick Up 25 | 12 4 9 Fast Attach . | . . . Attach 13 | 6 1 6 Detach . | . . . Swap 4 | . . 4 Drop 2 | . 1 1 Fire 33 | . 1 32 Melee 1 | . . 1 Ram 18 | . . 18 Kick 1 | . . 1 Crush . | . . . Escape Stasis . | . . . Rewire . | . . . Trap . | . . . Miscellaneous . | . . . Route ------- -11/Scrapyard -10/Materials -10/Subcaves History --------- Turn | Location | Event 27 | -11/Scrapyard | Discovered new exit (range 15) 69 | -11/Scrapyard | Entered Materials 262 | -10/Materials | Discovered new exit (range 6) 293 | -10/Materials | Entered Subcaves 305 | -10/Subcaves | Build established: Mutant 397 | -10/Subcaves | Ambushed by Subdweller buried in earth 525 | -10/Subcaves | Core integrity fell below 50% 533 | -10/Subcaves | Core integrity fell below 20% 538 | -10/Subcaves | Lost 4 parts (1p2n1w) 610 | -10/Subcaves | Visited Clippyterm 615 | -10/Subcaves | Learned Factory stockpile data 1148 | -10/Subcaves | Shifting Twisted Machinery released Mak. Light Armor Plating 1184 | -10/Subcaves | Shifting Twisted Machinery released Battle Cannon 1461 | -10/Subcaves | Destroyed by S-10 Pest with Light Assault Rifle Last Messages --------------- measures it might be just in time... 00821_ Subatomizers dissect the Sub. Power Source, destroying it. 00828_ Acquired Lgt. Assault Rifle. 00830_ Acquired 10 matter. 00833_ Acquired Med. Storage Unit. 00836_ Dropped Sml. Storage Unit. 00855_ Subatomizers dissect the Disposable Heat Sink. 00890_ VH-BUW(R) destroyed. 00910_ YH-B9Y(R) destroyed. 00914_ Acquired 16 matter. 00917_ Acquired Sub. Machine Gun. 00941_ Acquired Sub. Optics. Mak. Light Armor Plating falls loose from the Twisted Machinery. 01165_ Acquired Mak. Light Armor Plating. Battle Cannon falls loose from the Twisted Machinery. 01196_ Acquired Battle Cannon. Map ----- +----------------------------------------------------+ | ?????????????????????????????????????????????????? | | ?????????????????????????????????????????????????? | | ?????????????????????????????????????????????????? | | ?????????????????????????????????????????????????? | | ?????????????????????????????????????????????????? | | ?????????????????????????????????????????????????? | | ?????????????????????????????????????????????????? | | ?????????????????????????????????????????????????? | | ?????????????????????????????????????????????????? | | ?????????????????????????????????????????????????? | | ?????????????????????????????????????????????????? | | ?????????????????????????????????????????????????? | | ?????????????????? ##???????????????????????????? | | ????????????????? ???????????????????????????? | | ?????????????????# #??????????????????????????? | | ?????????????????# ??????????????????????????? | | ????????????????## ?????????????????????????? | | ????????????????? Ys ?????????????????????????? | | ?????????????????? ?????????????????????????? | | ??????????????????? ?????????????????????????? | | ????????????????????# ????????????????????????? | | ?????????????????????# g????????????????????????? | | ??????????????????????# ?###????????????????????? | | ???????????????######## ## ##???????????????????? | | ???????????????# ##??????????????????? | | ??????????????# @ #??????????????????? | | ??????????????# ## #??????????????????? | | ??????????????# ### ##?????????????????? | | ??????????????# & ##??## #####?????????????? | | ??????????????## <<